bitfinex/quotes_ETHUSD_20241217
["timestamp","ask_amount","ask_price","bid_price","bid_amount"]
[1734451729331,2.53493,3944.9,3942.9,0.8041]
[1734451729660,6.55244903,3945.1,3943.0,0.55]
[1734451729815,6.55244903,3945.1,3943.1,0.8041]
[1734451730018,0.782,3945.2,3943.1,0.8041]
[1734451730218,3.55114319,3945.3,3943.0,0.55]
[1734451730219,6.08580319,3945.3,3943.2,0.02535751]
[1734451730414,0.60858032,3945.2,3943.3,0.8041]
[1734451730629,0.12718014,3944.8,3943.3,0.8041]
[1734451730919,2.53452,3945.6,3943.5,0.8041]
[1734451731117,2.53452,3945.6,3943.6,0.55]
[1734451731358,0.60856632,3945.5,3943.8,0.8041]
[1734451732855,6.08548319,3945.8,3943.8,0.8041]
[1734451733018,0.12939671,3945.5,3943.8,0.8041]
[1734451733224,0.12939671,3945.5,3943.8,0.93781002]
[1734451733420,2.66392671,3945.5,3943.8,0.93781002]
[1734451733687,0.12939671,3945.5,3943.8,0.93781002]
[1734451733958,0.12939671,3945.5,3943.9,0.966422]
[1734451735056,3.55114319,3945.8,3944.0,0.55]
[1734451735251,3.55114319,3945.8,3944.1,0.8041]
[1734451735476,3.55114319,3945.3,3944.1,0.8041]
[1734451736559,2.65999089,3945.6,3944.1,0.8041]
[1734451736759,0.62111341,3945.5,3944.1,0.8041]
[1734451737459,0.62111341,3945.5,3944.1,3.0]
[1734451737690,0.62111341,3945.5,3943.8,0.55]
[1734451737959,0.62111341,3945.5,3943.9,0.8041]
[1734451738305,0.62111341,3945.5,3944.0,0.55]
[1734451738511,0.12552089,3945.6,3944.2,0.8041]
[1734451739660,0.1622247,3946.0,3944.2,0.8041]
[1734451740008,3.55114319,3945.8,3944.2,0.8041]
[1734451740609,2.53452,3945.6,3944.2,0.8041]
[1734451740905,2.53457,3945.5,3944.2,0.8041]
[1734451741120,0.26640936,3945.4,3944.2,0.8041]
[1734451741295,0.02778852,3945.5,3944.2,0.8041]
[1734451741495,3.55114319,3944.8,3942.1,1.05060211]
[1734451741680,3.55114319,3944.8,3941.9,5.12692434]
[1734451741681,2.53532,3944.3,3942.3,0.7562]
[1734451741876,0.80104907,3945.4,3942.4,3.55114319]
[1734451741877,0.0249898,3944.7,3942.4,3.55114319]
[1734451742109,0.02496239,3944.2,3942.5,0.78156066]
[1734451742312,3.58350351,3945.8,3943.2,3.55114319]
[1734451742520,3.71336789,3946.0,3943.3,0.7562]
[1734451742663,3.55114319,3945.0,3943.3,0.7562]
[1734451742990,2.55889698,3944.9,3943.3,0.7562]
[1734451743193,0.02398698,3944.9,3943.3,0.7562]
[1734451744360,0.02398698,3944.9,3943.5,0.7562]
[1734451744563,0.02398698,3944.9,3943.4,0.55]
[1734451744564,0.02398698,3944.9,3943.9,0.55]
[1734451744798,3.55114319,3945.6,3944.0,0.7562]
[1734451745003,0.02392632,3944.8,3944.0,0.7562]
[1734451745176,2.53472,3945.2,3944.0,0.7562]
[1734451745391,0.02392402,3944.7,3944.0,0.7562]
[1734451745613,3.55114319,3945.6,3944.0,0.7562]
[1734451745826,0.36806668,3945.5,3944.0,0.7562]
[1734451745967,4.32704319,3945.1,3944.0,0.7562]
[1734451746369,2.53524,3944.4,3944.0,0.7562]
[1734451746602,3.55114319,3944.6,3944.0,0.7562]
[1734451746814,0.7759,3945.1,3944.0,0.7562]
[1734451746815,3.55114319,3945.1,3944.0,0.7562]
[1734451746974,0.35511432,3945.0,3944.0,0.7562]
[1734451747581,2.53499,3944.8,3944.0,0.7562]
[1734451748166,0.02392402,3944.7,3944.0,0.7562]
[1734451748370,2.53466,3945.4,3944.0,0.7562]
[1734451748569,0.02392172,3944.6,3944.0,0.7562]
[1734451748983,2.53463,3945.4,3944.0,0.7562]
[1734451749169,0.72297399,3945.3,3944.0,0.7562]
[1734451749370,0.74582352,3945.3,3944.0,0.7562]
[1734451749694,2.53474,3945.2,3944.0,0.7562]
[1734451750011,2.55759253,3945.2,3944.0,0.7562]
[1734451750211,0.02285253,3945.2,3944.0,0.7562]
[1734451750578,0.02285253,3945.2,3944.1,0.55]
[1734451750800,0.12952363,3945.7,3944.4,0.7562]
[1734451751019,0.12952363,3945.7,3944.5,0.13062]
[1734451751629,0.1622247,3946.0,3944.7,0.55]
[1734451751774,0.02254179,3945.6,3944.7,0.55]
[1734451751978,0.1622247,3946.0,3944.7,0.55]
[1734451752179,0.02253949,3945.5,3944.8,0.143682]
[1734451752374,0.1622247,3946.0,3944.8,0.143682]
[1734451752678,0.1622247,3946.0,3944.9,0.7562]
[1734451753044,0.02254869,3945.9,3944.9,0.7562]
[1734451753763,0.28869445,3946.0,3944.9,0.7562]
[1734451753934,0.1622247,3946.0,3945.0,0.1449882]
[1734451754077,0.02293062,3945.9,3945.1,0.7562]
[1734451754282,0.1622247,3946.0,3945.1,0.7562]
[1734451754479,0.1622247,3946.0,3945.2,0.55]
[1734451754678,0.1622247,3946.0,3945.3,0.7562]
[1734451754926,0.1622247,3946.0,3945.4,0.43062]
[1734451755096,0.1622247,3946.0,3945.6,0.55]
[1734451755292,0.1622247,3946.0,3945.8,0.55]
[1734451755507,0.1622247,3946.0,3945.9,1.3062]
[1734451755716,0.1622247,3946.0,3945.9,7.85734319]
[1734451755921,0.1622247,3946.0,3945.9,8.64307751]
[1734451756074,0.1622247,3946.0,3945.9,2.09193432]
[1734451756275,0.1622247,3946.0,3945.9,1.3062]
[1734451759231,0.1622247,3946.0,3945.9,4.85734319]
[1734451759232,4.7e-06,3946.0,3945.9,4.85734319]
[1734451759438,0.005,3947.3,3946.0,3.55]
[1734451759602,0.005,3947.3,3946.2,0.55]
[1734451759803,0.005,3947.3,3946.3,3.55114319]
[1734451760007,0.0227735,3947.2,3946.6,0.55]
[1734451760315,0.005,3947.3,3946.5,0.7562]
[1734451760632,0.0227712,3947.1,3946.5,0.7562]
[1734451760833,0.0227735,3947.2,3946.5,0.7562]
[1734451761134,0.0227712,3947.1,3946.5,0.7562]
[1734451761353,0.005,3947.3,3946.5,0.7562]
[1734451762047,0.005,3947.3,3946.6,0.38892638]
[1734451762240,0.0227735,3947.2,3946.6,0.38892638]
[1734451762424,0.005,3947.3,3946.6,0.38892638]
[1734451762749,0.005,3947.3,3946.7,0.7562]
[1734451764630,0.005,3947.3,3946.8,0.55]
[1734451764941,0.005,3947.3,3946.7,0.7562]
[1734451765297,0.02389825,3947.2,3946.7,0.7562]
[1734451765546,0.005,3947.3,3946.7,0.7562]
[1734451765697,0.02332065,3947.1,3946.7,0.7562]
[1734451765896,0.005,3947.3,3946.7,0.7562]
[1734451766097,0.02331835,3947.0,3946.7,0.7562]
[1734451766297,0.005,3947.3,3946.7,0.7562]
[1734451766495,0.02332295,3947.2,3946.8,0.55]
[1734451766729,0.005,3947.3,3946.8,0.55]
[1734451766730,0.005,3947.3,3947.0,0.55]
[1734451766941,0.005,3947.3,3947.2,0.55]
[1734451768602,0.005,3947.3,3947.2,0.7562]
[1734451768914,0.005,3947.3,3947.2,1.3062]
[1734451770041,0.005,3947.3,3947.2,7.85734319]
[1734451770205,0.005,3947.3,3947.2,8.65613951]
[1734451770411,1e-05,3947.3,3947.2,8.65613951]
[1734451771662,3.30799,3949.3,3947.4,0.55]
[1734451771874,0.7759,3949.3,3947.5,0.7888]
[1734451772083,0.02378748,3949.2,3947.5,0.7888]
[1734451772365,0.02378748,3949.2,3947.7,0.7888]
[1734451772591,2.55595748,3949.2,3947.9,0.7888]
[1734451772725,0.02378748,3949.2,3948.0,0.55]
[1734451773123,0.1622247,3949.9,3948.0,0.55]
[1734451773376,0.02399178,3949.1,3948.0,0.55]
[1734451773522,2.53205,3949.4,3948.2,0.55]
[1734451773870,0.02471521,3949.0,3948.0,0.55]
[1734451774067,0.7606,3949.5,3947.5,0.7888]
[1734451774068,3.55114319,3949.3,3947.5,0.7888]
[1734451774237,2.53215,3949.2,3947.5,0.7888]
[1734451774423,2.53275,3948.3,3947.5,0.7888]
[1734451774616,0.253275,3948.2,3947.5,0.7888]
[1734451774826,0.02491929,3948.2,3947.5,0.7888]
[1734451775269,0.7606,3949.2,3947.5,0.7888]
[1734451775622,0.02414661,3949.1,3947.5,0.7888]
[1734451775978,0.02414661,3949.1,3948.2,0.7888]
[1734451776128,200.7606,3950.0,3948.6,0.55]
[1734451776330,200.7606,3950.0,3948.6,1.33899432]
[1734451776535,199.73855799,3950.0,3949.2,3.55114319]
[1734451776727,199.73855799,3950.0,3948.6,1.33899432]
[1734451776728,199.73855799,3950.0,3949.8,1.3388]
[1734451777054,0.02248417,3949.9,3949.8,1.3388]
[1734451778023,199.73855799,3950.0,3949.9,0.7888]
[1734451778024,198.69600116,3950.0,3949.9,0.7888]
[1734451778225,189.84281731,3950.0,3949.9,2.12779432]
[1734451778475,188.52281731,3950.0,3949.9,2.12779432]
[1734451778838,154.87511731,3950.0,3949.9,2.12779432]
[1734451779039,154.41754822,3950.0,3949.9,2.12779432]
[1734451780726,154.41754822,3950.0,3949.9,0.91963448]
[1734451782174,154.41754822,3950.0,3949.9,0.7888]
[1734451783126,154.41754822,3950.0,3949.9,1.3388]
[1734451787100,154.4047269,3950.0,3949.9,1.3388]
[1734451787707,137.02395319,3950.0,3949.9,1.5888]
[1734451788001,137.02395319,3950.0,3949.9,17.1840002]
[1734451788002,134.21490633,3950.0,3949.9,17.1840002]
[1734451788154,133.66490633,3950.0,3949.9,14.3194152]
[1734451788493,133.66490633,3950.0,3949.9,2.1661402]
[1734451788800,133.66490633,3950.0,3949.9,7.8207502]
[1734451788977,133.66490633,3950.0,3949.9,5.1661402]
[1734451789150,133.66490633,3950.0,3949.9,10.9335622]
[1734451789353,133.66490633,3950.0,3949.9,9.6576822]
[1734451790393,133.66490633,3950.0,3949.9,8.3739132]
[1734451790598,133.66490633,3950.0,3949.9,8.71728339]
[1734451790962,133.66490633,3950.0,3949.9,11.25665439]
[1734451791167,133.66490633,3950.0,3949.9,1.6161402]
[1734451791368,133.66490633,3950.0,3949.9,0.7888]
[1734451791815,133.66490633,3950.0,3949.9,4.33994319]
[1734451792383,133.66490633,3950.0,3949.9,7.33994319]
[1734451792910,133.66490633,3950.0,3949.9,10.92901719]
[1734451793708,133.66490633,3950.0,3949.9,7.88994319]
[1734451793893,133.66490633,3950.0,3949.9,10.96883839]
[1734451794295,106.72125652,3950.0,3949.9,9.62659819]
[1734451794610,106.72125652,3950.0,3949.9,10.12659232]
[1734451794611,93.93144473,3950.0,3949.9,10.12659232]
[1734451794978,93.95367781,3950.0,3949.9,10.12659232]
[1734451795198,93.95367781,3950.0,3949.9,10.25463314]
[1734451795406,93.70477781,3950.0,3949.9,10.25463314]
[1734451796324,84.8578151,3950.0,3949.9,10.25463314]
[1734451796712,76.01085239,3950.0,3949.9,10.25463314]
[1734451797020,67.16388968,3950.0,3949.9,10.25463314]
[1734451797321,58.31692697,3950.0,3949.9,9.75463901]
[1734451797507,49.46996426,3950.0,3949.9,9.20463901]
[1734451797714,49.2913348,3950.0,3949.9,9.20463901]
[1734451798028,40.44437209,3950.0,3949.9,9.20463901]
[1734451798326,28.29049348,3950.0,3949.9,9.20463901]
[1734451798833,18.69771216,3950.0,3949.9,9.75463901]
[1734451799131,4.79362622,3950.0,3949.9,9.75463901]
[1734451799326,4.79362622,3950.0,3949.9,9.20463901]
[1734451799680,0.8187,3951.5,3949.9,9.20463901]
[1734451799886,0.8187,3951.5,3950.0,3.02530668]
[1734451800300,0.005,3952.0,3950.6,3.0]
[1734451800590,0.005,3952.0,3950.5,3.55114319]
[1734451800591,0.8187,3952.8,3951.1,3.55]
[1734451800816,0.8187,3952.8,3950.3,1.2701667]
[1734451800817,0.8187,3953.8,3951.5,3.7839]
[1734451801330,0.7592,3953.6,3951.5,0.7839]
[1734451801547,0.7592,3953.6,3951.5,0.55]
[1734451801698,0.7592,3953.6,3951.2,0.55]
[1734451801900,3.28858,3953.6,3951.2,0.55]
[1734451802226,0.7592,3953.6,3951.2,0.55]
[1734451802431,0.7592,3953.6,3951.6,0.2339]
[1734451802740,0.7592,3953.6,3951.7,0.55]
[1734451802964,0.328844,3953.5,3951.7,0.55]
[1734451803186,0.7592,3953.6,3951.7,0.55]
[1734451803385,0.7592,3953.6,3951.7,0.67879517]
[1734451804042,0.7592,3953.6,3951.9,0.55]
[1734451804242,0.7592,3953.6,3952.1,0.55]
[1734451804958,0.7592,3953.6,3952.2,0.25375596]
[1734451805128,0.7592,3953.6,3952.3,0.55]
[1734451806025,0.1622247,3953.9,3952.4,0.0252949]
[1734451806226,0.1622247,3953.9,3952.3,0.55]
[1734451806426,0.1622247,3953.9,3952.3,0.6817169]
[1734451807969,0.7592,3953.8,3952.3,0.8083465]
[1734451808141,0.7592,3953.8,3952.3,0.6817169]
[1734451808471,0.7592,3953.8,3952.3,0.1317169]
[1734451808672,0.70016579,3953.7,3952.2,0.2339]
[1734451808827,0.70016579,3953.7,3951.7,0.12879517]
[1734451808828,0.7592,3953.6,3951.7,0.12879517]
[1734451809569,0.7592,3953.6,3951.8,0.55]
[1734451809768,0.7592,3953.6,3951.9,0.02529698]
[1734451809974,0.7592,3953.6,3952.0,0.7839]
[1734451810866,0.7592,3953.6,3952.0,0.2339]
[1734451811247,0.7592,3953.6,3952.0,0.36669214]
[1734451811548,0.7592,3953.6,3952.1,0.02529649]
[1734451811763,0.1622247,3953.9,3952.1,0.02529649]
[1734451812186,0.1622247,3953.9,3952.1,0.57529649]
[1734451812604,0.1622247,3953.9,3952.3,0.55]
[1734451813084,0.1622247,3953.9,3952.1,0.55]
[1734451813471,0.1622247,3953.9,3952.0,0.55]
[1734451814193,2.52961,3953.2,3951.7,0.12879517]
[1734451814393,0.1622247,3953.9,3951.0,0.13231056]
[1734451814394,0.7592,3952.5,3951.0,0.13231056]
[1734451814693,0.7592,3952.5,3950.1,0.2339]
[1734451814694,3.55114319,3952.1,3950.1,0.2339]
[1734451814857,0.7592,3952.0,3950.1,0.36664333]
[1734451817185,0.7592,3952.0,3950.1,0.39194721]
[1734451817373,0.7592,3952.0,3950.2,0.55]
[1734451817749,0.7592,3952.0,3950.1,0.36664333]
[1734451818163,0.43103432,3951.9,3950.1,0.36664333]
[1734451818375,0.7662,3951.8,3950.1,0.36664333]
[1734451818774,0.7662,3951.7,3950.1,0.13274333]
[1734451818972,0.7662,3951.7,3950.0,0.991919]
[1734451819807,0.7662,3951.7,3950.1,0.2339]
[1734451820104,0.7662,3951.7,3950.2,0.55]
[1734451820875,0.7662,3951.7,3950.5,0.55]
[1734451821062,0.7662,3951.7,3950.1,0.2339]
[1734451821267,0.7662,3951.7,3950.3,3.0]
[1734451821480,0.329665,3951.6,3950.1,0.2339]
[1734451822215,0.7662,3951.7,3950.4,0.55]
[1734451822428,2.53063,3951.6,3950.1,0.2339]
[1734451822714,2.53063,3951.6,3950.0,1.12385435]
[1734451822715,2.53073,3951.5,3950.0,0.991919]
[1734451822864,2.53062,3951.6,3950.0,0.991919]
[1734451823199,0.7662,3951.7,3950.0,0.991919]
[1734451823600,2.53036,3952.0,3950.0,0.991919]
[1734451823810,0.7662,3951.4,3950.0,0.991919]
[1734451824490,0.60815032,3951.9,3950.0,0.991919]
[1734451824491,3.55114319,3951.0,3950.0,0.991919]
[1734451824695,3.29728,3950.9,3950.0,0.991919]
[1734451825023,0.7662,3950.9,3950.0,0.991919]
[1734451827384,3.55114319,3951.0,3950.0,0.991919]
[1734451827385,0.7662,3950.7,3950.0,0.991919]
[1734451828099,3.55114319,3950.5,3950.0,0.991919]
[1734451828430,2.53139,3950.4,3950.0,0.991919]
[1734451828645,0.7662,3950.4,3950.0,0.991919]
[1734451829917,0.7662,3950.4,3950.2,0.25314]
[1734451830122,0.7662,3950.4,3950.1,0.25315]
[1734451830628,0.7662,3950.4,3950.0,0.991919]
[1734451830992,0.7662,3950.4,3950.3,0.50161844]
[1734451831329,0.7662,3950.4,3950.0,0.991919]
[1734451831330,3.55114319,3950.1,3950.0,0.991919]
[1734451831635,1.19793432,3950.4,3950.0,0.991919]
[1734451832141,0.818,3950.3,3950.0,0.991919]
[1734451832340,0.818,3950.1,3950.0,0.991919]
[1734451832631,0.818,3950.1,3948.6,3.0]
[1734451832632,3.55114319,3950.1,3949.6,0.49382964]
[1734451832853,3.34983,3949.7,3949.6,0.49382964]
[1734451832990,2.5321,3949.3,3948.4,1.04986961]
[1734451833192,0.35511432,3950.0,3948.3,1.04986961]
[1734451833193,0.818,3949.0,3948.3,1.04986961]
[1734451833440,0.818,3949.0,3948.5,0.50354035]
[1734451833441,2.53238,3948.9,3948.5,0.50354035]
[1734451833755,0.818,3949.0,3948.0,1.04986961]
[1734451833894,0.818,3948.8,3948.3,0.51363001]
[1734451834235,0.818,3948.8,3947.5,1.30224437]
[1734451834236,0.818,3948.5,3947.9,1.04986961]
[1734451834592,0.818,3948.5,3948.0,1.3028689]
[1734451834795,0.818,3948.5,3947.8,1.04986961]
[1734451835532,0.818,3948.5,3948.3,0.51256754]
[1734451835742,1.25491432,3948.5,3948.3,0.51256754]
[1734451836230,1.25491432,3948.5,3948.1,0.51282051]
[1734451837241,1.25491432,3948.5,3947.6,1.04986961]
[1734451837242,0.818,3948.4,3947.6,1.04986961]
[1734451837391,0.818,3947.7,3947.5,1.55616349]
[1734451837597,0.818,3947.7,3947.5,0.50629388]
[1734451837822,1.25491432,3947.7,3947.5,0.50629388]
[1734451838406,0.818,3947.7,3947.5,0.50629388]
[1734451840146,2.53292,3948.1,3946.7,1.04986961]
[1734451840147,2.53318,3947.6,3946.7,1.04986961]
[1734451840295,3.55114319,3947.3,3946.9,0.50167036]
[1734451840496,0.818,3947.2,3946.4,1.04986961]
[1734451840696,0.43691432,3947.1,3946.7,0.51290746]
[1734451842105,3.55114319,3946.8,3946.1,1.04986961]
[1734451842298,3.55114319,3946.4,3946.1,1.04986961]
[1734451842543,0.818,3946.3,3945.8,1.04986961]
[1734451842704,0.818,3946.3,3945.9,0.50921238]
[1734451843737,0.818,3947.0,3945.9,1.01606238]
[1734451843910,0.818,3947.0,3945.9,2.06593199]
[1734451844113,0.818,3947.0,3946.0,0.50683]
[1734451844319,0.818,3947.0,3945.9,1.55908199]
[1734451844524,0.818,3946.8,3945.9,0.50921238]
[1734451845247,0.818,3946.7,3945.9,0.50921238]
[1734451846626,0.818,3946.7,3946.0,0.50683]
[1734451846837,0.818,3946.7,3945.9,0.50921238]
[1734451847840,0.25,3947.0,3945.9,0.50921238]
[1734451848072,1.1444,3946.5,3945.9,0.50921238]
[1734451848232,3.6783,3946.5,3945.9,0.50921238]
[1734451848441,1.1444,3946.5,3945.9,0.50921238]
[1734451850381,1.1444,3946.3,3945.9,0.50921238]
[1734451851074,3.67845,3946.3,3945.9,0.50921238]
[1734451851279,0.367845,3946.2,3945.9,0.50921238]
[1734451851572,1.1444,3946.3,3944.9,1.0444842]
[1734451851778,1.1444,3946.3,3945.1,1.0444842]
[1734451851932,1.1444,3946.3,3944.9,3.23526179]
[1734451851933,1.1444,3946.3,3945.0,1.5514542]
[1734451852133,1.1444,3946.3,3945.1,0.50694]
[1734451852368,1.1444,3946.3,3945.7,0.51188568]
[1734451853278,1.1444,3946.3,3945.7,1.01875568]
[1734451853577,1.1444,3946.3,3945.7,0.51188568]
[1734451854589,1.1444,3946.3,3945.9,0.50685]
[1734451854883,1.1444,3946.3,3945.7,0.51188568]
[1734451855267,1.1444,3946.3,3945.8,0.50686]
[1734451855560,1.1444,3946.3,3945.7,0.51188568]
[1734451856380,1.1444,3946.3,3945.7,1.01875568]
[1734451856877,1.1444,3946.7,3945.7,0.51188568]
[1734451857080,1.1444,3946.7,3945.9,0.50685]
[1734451857431,1.30978168,3946.7,3945.9,0.50685]
[1734451857635,1.1444,3946.7,3945.7,0.51188568]
[1734451857990,2.674,3948.2,3946.0,0.55]
[1734451857991,1.1444,3947.2,3946.0,0.55]
[1734451858192,1.1444,3947.9,3946.6,1.2033]
[1734451858398,1.1444,3947.9,3946.8,0.50672]
[1734451858689,1.1444,3947.9,3947.4,0.50665]
[1734451859190,1.1444,3947.9,3947.2,0.50668]
[1734451859337,1.1444,3947.9,3947.6,0.50663]
[1734451859534,1.1444,3947.9,3947.4,0.50665]
[1734451860172,1.1444,3947.9,3947.1,0.49497578]
[1734451860678,1.1444,3947.9,3947.5,0.50664]
[1734451860879,1.1444,3948.8,3947.7,0.50662]
[1734451861181,1.1444,3948.8,3947.1,0.49497578]
[1734451861182,0.46955432,3948.7,3947.1,0.49497578]
[1734451861480,1.186,3948.6,3946.9,1.0444842]
[1734451861681,1.186,3949.2,3948.2,0.50655]
[1734451861848,1.186,3949.2,3948.7,0.50649]
[1734451862048,1.186,3949.2,3948.4,0.50652]
[1734451862247,1.186,3949.2,3947.9,0.51258295]
[1734451862447,1.186,3949.2,3948.5,0.50651]
[1734451862870,1.186,3949.2,3947.9,0.55]
[1734451863052,1.186,3949.2,3948.1,0.50657]
[1734451863265,3.55114319,3950.3,3948.1,0.50657]
[1734451863266,1.186,3949.7,3948.5,0.55]
[1734451863601,1.186,3949.7,3949.1,0.51622798]
[1734451863936,1.186,3949.7,3949.2,0.50643]
[1734451864245,1.186,3949.7,3949.1,0.51622798]
[1734451864432,5.09556,3951.1,3949.1,0.51622798]
[1734451864433,2.5646,3951.1,3949.1,0.51622798]
[1734451864641,1.186,3950.9,3949.5,0.50638]
[1734451864892,1.436,3950.9,3949.5,0.50638]
[1734451865053,2.53113,3950.8,3949.2,0.50642]
[1734451865232,1.186,3950.7,3949.4,0.5064]
[1734451865435,1.21916765,3950.7,3949.1,0.51622798]
[1734451865639,1.21916765,3950.7,3949.2,1.73013]
[1734451865868,1.21916765,3950.7,3949.2,1.2237]
[1734451866052,1.21916765,3950.7,3949.9,1.01022243]
[1734451866272,1.21916765,3950.7,3949.9,0.50388243]
[1734451866844,1.21916765,3950.7,3950.0,0.50632]
[1734451867073,1.21916765,3950.7,3949.9,0.50388243]
[1734451870847,1.21916765,3950.7,3948.8,1.1627]
[1734451871195,1.1531,3950.0,3949.1,0.49350615]
[1734451871374,0.47703108,3950.6,3948.6,0.13243135]
[1734451871375,3.68493,3949.7,3948.6,0.13243135]
[1734451871546,2.53218,3949.2,3948.0,2.2071842]
[1734451871743,1.1531,3949.1,3948.6,0.50766992]
[1734451872000,1.18845373,3949.1,3948.6,0.50766992]
[1734451872142,0.37206337,3949.0,3948.6,0.50766992]
[1734451872486,0.37206337,3949.0,3947.5,3.25166841]
[1734451872487,0.03491573,3948.9,3947.9,1.0444842]
[1734451872804,0.03491573,3948.9,3948.3,0.50645588]
[1734451872981,2.53228,3949.0,3948.3,0.50645588]
[1734451873186,2.53236,3948.9,3948.3,0.50645588]
[1734451873508,0.368546,3948.8,3948.3,0.50645588]
[1734451873841,0.03491246,3948.7,3947.9,1.0444842]
[1734451874044,0.03491246,3948.7,3947.7,1.0444842]
[1734451874045,2.533,3947.9,3947.7,1.0444842]
[1734451874355,1.1531,3947.7,3947.4,1.0444842]
[1734451874560,3.68622,3947.7,3947.3,1.0444842]
[1734451874809,0.03401414,3947.6,3947.3,1.0444842]
[1734451875016,0.03401414,3947.6,3947.5,1.5667263]
[1734451875292,1.1531,3948.6,3947.6,0.50662]
[1734451875501,1.1531,3948.6,3947.9,1.04823947]
[1734451875638,0.03236865,3948.5,3947.9,1.04823947]
[1734451875847,1.1531,3948.6,3947.8,1.04823947]
[1734451876045,1.1531,3948.6,3947.7,3.21876477]
[1734451876046,0.03236701,3948.4,3947.9,1.04823947]
[1734451876256,1.1531,3948.6,3947.9,1.04823947]
[1734451876492,0.03236538,3948.3,3947.9,1.04823947]
[1734451876692,1.1531,3948.6,3948.0,1.04823947]
[1734451877497,0.03238988,3948.5,3948.0,1.04823947]
[1734451877850,1.1728,3949.0,3948.0,1.04823947]
[1734451878141,1.1728,3949.0,3948.1,1.04823947]
[1734451878301,0.03239642,3948.9,3948.1,1.04823947]
[1734451878662,0.03239642,3948.9,3948.4,0.49377716]
[1734451880067,0.03239642,3948.9,3948.1,1.04823947]
[1734451880068,2.53273,3948.3,3948.1,1.04823947]
[1734451880267,2.53273,3948.3,3947.6,0.51807124]
[1734451880469,0.03174488,3948.2,3947.6,0.51807124]
[1734451880670,2.22930265,3948.5,3947.6,0.51807124]
[1734451881017,1.05650265,3948.7,3947.6,0.51807124]
[1734451881161,1.05650265,3949.0,3947.7,1.1466]
[1734451881359,0.03175345,3948.4,3948.0,0.50658]
[1734451881611,1.05650265,3949.2,3947.7,1.1466]
[1734451881936,0.03175181,3948.3,3947.7,1.1466]
[1734451882196,3.58866265,3949.2,3947.9,0.50659]
[1734451882401,1.3098942,3949.1,3947.9,0.50659]
[1734451882555,0.76561108,3949.0,3947.9,0.50659]
[1734451882756,0.03179879,3948.9,3948.2,0.50724013]
[1734451883216,1.05650265,3949.2,3948.2,0.50724013]
[1734451883387,2.53235,3948.9,3948.2,0.50724013]
[1734451883608,0.03179716,3948.8,3948.2,0.50724013]
[1734451883887,1.05650265,3949.0,3948.2,0.50724013]
[1734451884092,1.05650265,3949.0,3946.8,0.50673]
[1734451884093,0.03185919,3948.7,3946.8,0.50673]
[1734451884294,2.49342831,3948.9,3947.0,1.1466]
[1734451884462,0.03185755,3948.6,3947.9,0.50623174]
[1734451884664,2.49342831,3948.9,3947.9,0.50623174]
[1734451884905,0.03185592,3948.5,3947.9,0.50623174]
[1734451885062,1.43692566,3948.9,3947.9,0.50623174]
[1734451885256,0.03185428,3948.4,3947.9,0.50623174]
[1734451885457,1.43692566,3948.9,3948.0,1.1466]
[1734451885458,1.1728,3948.9,3948.0,1.1466]
[1734451885715,0.03185264,3948.3,3948.2,0.50655]
[1734451885878,2.22930265,3949.5,3948.0,4.1466]
[1734451886082,1.1728,3949.5,3948.5,0.50651]
[1734451886284,1.1728,3949.5,3948.2,0.50654]
[1734451886285,1.543259,3949.5,3948.2,0.50654]
[1734451886482,1.1728,3949.5,3948.2,0.50654]
[1734451886701,1.1728,3949.5,3949.0,0.50157627]
[1734451887208,1.1728,3949.5,3948.6,0.5065]
[1734451887416,2.22930265,3949.9,3948.1,0.57079172]
[1734451887612,1.1728,3949.9,3949.0,0.50645]
[1734451887781,4.11626398,3950.3,3949.0,1.1466]
[1734451887782,1.1728,3950.3,3949.0,1.1466]
[1734451888822,1.33778311,3950.3,3949.9,0.49509909]
[1734451889622,2.53153,3950.2,3949.9,0.49509909]
[1734451889837,2.53153,3950.2,3947.5,1.05157314]
[1734451889838,1.33778311,3950.3,3948.6,1.1466]
[1734451890026,1.33778311,3950.3,3948.2,1.65315]
[1734451890027,1.1728,3949.8,3948.2,1.65315]
[1734451890318,2.53197,3949.5,3948.2,1.65315]
[1734451890480,0.57804458,3949.7,3948.2,1.1466]
[1734451890481,2.53206,3949.4,3948.2,1.1466]
[1734451890923,4.16644723,3949.7,3948.8,0.51778609]
[1734451891279,0.57804458,3949.7,3948.9,0.55]
[1734451891516,0.02878237,3949.6,3948.9,0.55]
[1734451891724,0.02878237,3949.6,3949.2,0.50642]
[1734451892088,1.1728,3949.8,3948.9,1.05645]
[1734451892298,1.1728,3949.8,3948.9,0.55]
[1734451892474,1.1728,3949.8,3949.1,1.05643]
[1734451893196,1.1728,3949.8,3948.9,0.55]
[1734451893397,1.1728,3949.8,3949.4,0.50503747]
[1734451893690,2.53196,3949.5,3948.3,0.50654]
[1734451893900,1.42694765,3949.7,3948.2,1.1466]
[1734451894099,2.53244,3948.8,3948.2,0.5004338]
[1734451894369,3.55114319,3949.3,3948.2,0.5004338]
[1734451894370,2.53229,3949.0,3948.2,0.5004338]
[1734451894518,1.05650265,3949.4,3948.2,0.5004338]
[1734451894519,0.253229,3948.9,3948.2,0.5004338]
[1734451894703,1.1942,3949.5,3948.2,0.5004338]
[1734451894876,0.02864195,3948.8,3948.5,0.50651]
[1734451895411,0.02864032,3948.7,3948.6,0.5065]
[1734451895612,1.1942,3949.5,3948.6,1.0565]
[1734451895810,1.1942,3949.5,3948.7,0.55]
[1734451896039,0.54395152,3949.4,3948.5,0.55]
[1734451896518,0.54395152,3949.4,3948.3,0.55]
[1734451896701,0.02865176,3949.4,3948.3,0.55]
[1734451896881,0.02865176,3949.4,3948.3,0.50654]
[1734451897103,0.02865176,3949.4,3948.4,1.05653]
[1734451897315,0.02865176,3949.4,3948.5,0.50652]
[1734451897624,0.02865176,3949.4,3948.1,1.2116]
[1734451897625,0.02865176,3949.4,3948.6,0.55]
[1734451897925,0.02865176,3949.4,3948.7,0.49484389]
[1734451897926,0.37547518,3949.3,3948.7,0.49484389]